bitfinex-derivatives/quotes_ETHF0:USTF0_20260316
["timestamp","ask_amount","ask_price","bid_price","bid_amount"]
[1773683711369,5.28395347,2313.1,2311.8,2.22405745]
[1773683711570,5.28395347,2313.1,2311.9,9.4413731]
[1773683711871,5.28395347,2313.1,2311.9,9.4423731]
[1773683712172,5.28395347,2313.1,2312.0,2.15279659]
[1773683715071,5.28395347,2313.1,2312.0,2.36903659]
[1773683715472,5.28395347,2313.3,2312.0,2.36903659]
[1773683716076,5.28395347,2313.9,2312.5,2.08540726]
[1773683716277,5.49522063,2313.9,2312.7,2.08487147]
[1773683718477,5.49522063,2313.9,2312.8,1.98582415]
[1773683719777,5.49522063,2313.9,2312.9,9.20043583]
[1773683720585,5.49522063,2313.9,2312.9,1.91543583]
[1773683720883,5.49522063,2313.9,2312.8,9.17106988]
[1773683721083,5.49522063,2313.9,2312.8,1.88606988]
[1773683723088,5.49522063,2313.9,2312.9,1.83625931]
[1773683725893,5.49522063,2313.9,2313.0,1.81703733]
[1773683726093,5.49522063,2313.9,2313.0,1.82054168]
[1773683728994,5.49522063,2313.9,2313.0,1.75271909]
[1773683731698,5.49522063,2313.9,2313.0,0.00350435]
[1773683738805,5.60339063,2313.9,2313.0,0.00350435]
[1773683739699,5.71129063,2313.9,2312.6,1.94669323]
[1773683739900,5.82002063,2313.9,2312.6,1.94669323]
[1773683740101,5.82021063,2313.9,2312.6,1.94669323]
[1773683740703,5.49896489,2313.4,2312.6,0.00336258]
[1773683741006,5.38594489,2313.4,2312.6,0.00336258]
[1773683741304,5.49564489,2313.4,2312.6,0.00336258]
[1773683742299,5.38594489,2313.4,2312.6,0.00336258]
[1773683742504,5.49701489,2313.4,2312.6,0.00336258]
[1773683743302,5.49547489,2313.4,2312.6,0.00336258]
[1773683743501,5.38594489,2313.4,2312.6,2.06250488]
[1773683743696,5.49456489,2313.4,2312.6,2.06250488]
[1773683743902,5.38594489,2313.4,2312.6,2.06250488]
[1773683744502,5.38594489,2313.4,2312.7,0.21618]
[1773683744806,5.38594489,2313.4,2312.8,2.05533369]
[1773683749011,5.38594489,2313.4,2312.7,0.21618]
[1773683749512,5.38594489,2313.4,2312.7,2.33097682]
[1773683750106,5.38594489,2313.4,2312.6,0.00336258]
[1773683751609,5.38594489,2313.4,2312.6,2.09208813]
[1773683754714,5.19093791,2313.6,2312.6,2.09208813]
[1773683755415,5.19093791,2313.6,2312.7,0.21618]
[1773683755615,5.19093791,2313.6,2312.8,2.03631446]
[1773683758214,5.19093791,2313.6,2312.6,0.00336258]
[1773683758522,5.19093791,2313.6,2312.6,2.00425366]
[1773683762521,5.19093791,2313.6,2312.6,2.22043366]
[1773683765923,5.19093791,2313.6,2312.6,9.43843366]
[1773683766428,5.19093791,2313.6,2312.6,2.22043366]
[1773683769424,5.19093791,2313.6,2312.6,2.00425366]
[1773683775529,5.19093791,2313.6,2312.6,0.00336258]
[1773683775730,5.19093791,2313.6,2312.6,1.8665478]
[1773683776527,5.19093791,2313.6,2312.8,1.82334071]
[1773683776832,5.19093791,2313.6,2313.0,2.98585361]
[1773683777938,5.19093791,2313.6,2313.1,1.7846512]
[1773683783233,4.66893419,2313.4,2312.6,1.56369236]
[1773683784035,4.66893419,2313.4,2312.6,2.72620526]
[1773683784432,4.66893419,2313.4,2313.0,1.1625129]
[1773683784636,4.66893419,2313.8,2313.1,1.75698941]
[1773683785531,4.66893419,2313.8,2313.2,1.1625129]
[1773683785737,4.66893419,2313.8,2313.3,4.75890525]
[1773683785940,4.66893419,2313.9,2313.4,5.92141815]
[1773683786128,0.0837059,2314.6,2313.6,5.92141815]
[1773683786334,0.05541327,2314.5,2313.9,5.12083336]
[1773683786738,0.05541327,2314.4,2313.5,5.12083336]
[1773683787037,0.05920261,2314.4,2313.5,5.12083336]
[1773683793042,0.05920261,2314.4,2312.9,4.87584757]
[1773683793344,0.05920261,2314.4,2313.0,4.87584757]
[1773683794445,0.05920261,2314.4,2313.2,4.876385]
[1773683799152,0.05920261,2314.4,2312.9,7.159]
[1773683799153,0.00378934,2314.4,2313.4,4.89930094]
[1773683799353,0.00378934,2314.4,2313.6,4.89930094]
[1773683799552,1.17301853,2314.7,2313.8,4.89930094]
[1773683799852,1.17680787,2315.1,2314.2,4.89740627]
[1773683800048,1.15429758,2315.6,2314.2,4.89740627]
[1773683800549,1.15861525,2315.6,2314.2,4.89740627]
[1773683801060,1.15861525,2315.6,2314.4,4.89564671]
[1773683801248,1.15861525,2315.6,2314.4,4.90096007]
[1773683802952,1.37568629,2315.6,2314.4,4.90096007]
[1773683803249,1.11324014,2315.4,2314.4,4.90096007]
[1773683803456,1.11324014,2315.4,2314.4,0.00531336]
[1773683805256,1.11324014,2315.4,2314.4,4.97247747]
[1773683808358,1.023489,2315.6,2314.4,4.97247747]
[1773683808655,1.023489,2315.6,2314.6,4.98696027]
[1773683808853,0.00431767,2315.6,2314.6,4.98696027]
[1773683809255,0.00431767,2315.6,2314.8,4.98292114]
[1773683811156,0.00431767,2315.6,2314.7,0.21599]
[1773683811157,0.00431767,2315.6,2315.0,4.99465068]
[1773683811357,0.72467127,2316.1,2315.0,4.99465068]
[1773683811559,0.72898894,2316.3,2315.0,4.99465068]
[1773683812256,0.73386723,2316.3,2315.0,4.99465068]
[1773683813264,1.23853005,2316.3,2315.0,4.99465068]
[1773683813460,0.6675079,2316.2,2315.0,4.99465068]
[1773683817470,0.21586,2316.1,2315.0,4.99465068]
[1773683818067,0.67738348,2316.0,2315.0,4.99465068]
[1773683818268,0.56672348,2316.0,2315.0,4.99465068]
[1773683818565,0.67500348,2316.0,2315.0,4.99465068]
[1773683820363,0.33156,2315.9,2315.0,4.99465068]
[1773683820765,0.64950751,2315.8,2315.0,4.99465068]
[1773683821364,0.64039751,2315.8,2315.0,4.99465068]
[1773683821568,0.22929159,2316.2,2315.0,4.99465068]
[1773683821766,0.22861159,2316.1,2315.0,4.99465068]
[1773683821963,0.33415,2316.0,2315.0,4.99465068]
[1773683822169,0.32020168,2315.7,2314.5,5.24726605]
[1773683822562,0.51460186,2316.3,2314.5,5.24726605]
[1773683822764,0.32020168,2316.1,2314.7,5.24726605]
[1773683822971,0.42879168,2316.0,2314.7,5.24726605]
[1773683823167,0.32020168,2316.0,2314.7,5.24726605]
[1773683823366,0.32020168,2316.0,2314.9,5.24726605]
[1773683824070,0.25934087,2315.9,2314.9,5.24726605]
[1773683824665,0.47523087,2315.9,2314.9,5.24726605]
[1773683824867,0.26494042,2315.8,2314.9,5.24726605]
[1773683825068,0.10867,2315.8,2314.9,5.24726605]
[1773683825268,0.32424,2315.9,2314.9,5.24726605]
[1773683826873,1.28027481,2315.2,2314.5,5.24726605]
[1773683827078,0.11877,2315.2,2314.5,5.24726605]
[1773683828475,5.82864147,2315.2,2314.5,5.24726605]
[1773683828676,4.55632666,2315.1,2314.5,5.24726605]
[1773683828876,6.23477997,2314.8,2314.5,4.52926605]
[1773683829072,6.23477997,2314.8,2314.4,0.00531336]
[1773683829271,6.23477997,2314.8,2314.3,5.24726605]
[1773683829672,5.07327516,2314.8,2314.3,5.24726605]
[1773683829874,5.07327516,2315.1,2314.3,5.24726605]
[1773683830176,5.07327516,2315.1,2314.3,5.25164384]
[1773683830677,5.07327516,2314.9,2314.3,5.25164384]
[1773683831075,0.21398332,2315.2,2314.3,5.25164384]
[1773683831277,5.07327516,2315.2,2314.3,5.25164384]
[1773683831977,1.16150481,2315.4,2314.3,5.25164384]
[1773683831978,5.07327516,2315.5,2314.5,5.24726605]
[1773683832177,5.07327516,2315.1,2314.5,5.24726605]
[1773683837077,5.07327516,2315.1,2314.3,5.25164384]
[1773683841487,0.21649166,2315.2,2314.3,5.25164384]
[1773683841787,5.07327516,2315.2,2314.3,5.25164384]
[1773683844188,5.1046969,2315.6,2314.5,5.5044165]
[1773683848597,5.31561414,2315.6,2314.5,5.5044165]
[1773683849598,5.31561414,2315.6,2314.7,5.5044165]
[1773683852103,5.53152414,2315.6,2314.4,5.5044165]
[1773683860601,5.31561414,2315.6,2314.4,5.5044165]
[1773683862304,5.31561414,2315.6,2314.6,5.5044165]
[1773683872212,5.1046969,2315.4,2314.4,5.5044165]
[1773683872812,5.2129969,2315.4,2314.4,5.5044165]
[1773683874918,5.03367062,2315.2,2314.4,5.5044165]
[1773683881720,4.91634062,2314.5,2314.0,5.31557485]
[1773683881922,4.91634062,2314.5,2313.5,5.31557485]
[1773683882220,4.91634062,2315.0,2313.5,5.31557485]
[1773683882420,5.02611062,2315.0,2313.5,5.31557485]
[1773683882719,5.03068259,2315.0,2313.5,5.31911378]
[1773683884624,4.91634062,2314.8,2313.5,5.31911378]
[1773683885218,4.91634062,2314.6,2313.5,5.31911378]
[1773683885626,0.00457197,2315.0,2313.9,5.31557485]
[1773683885922,0.00457197,2315.0,2314.3,5.31557485]
[1773683886124,4.91634062,2315.5,2314.5,5.31557485]
[1773683887023,4.91994416,2315.5,2314.5,5.31557485]
[1773683887225,0.00360354,2315.5,2314.7,5.31557485]
[1773683887423,0.00360354,2315.5,2314.6,0.216]
[1773683887424,0.21774331,2315.8,2314.9,5.31557485]
[1773683887623,4.91634062,2315.9,2314.9,5.31557485]
[1773683888124,5.13642741,2315.9,2314.9,5.31557485]
[1773683888426,5.14188847,2315.9,2314.9,5.31557485]
[1773683889020,0.22554785,2315.9,2314.9,5.31557485]
[1773683889224,0.00546106,2315.9,2314.9,5.31557485]
[1773683889420,4.91634062,2316.2,2315.1,5.31557485]
[1773683889827,4.91634062,2316.6,2315.1,5.31557485]
[1773683890627,4.92105365,2316.6,2315.3,5.31557485]
[1773683890831,4.92105365,2316.6,2315.3,5.32065466]
[1773683891030,5.42561968,2316.6,2315.3,5.32065466]
[1773683892922,0.21583,2316.5,2315.3,5.32065466]
[1773683893127,4.91634062,2316.4,2315.3,5.32065466]
[1773683894426,5.02614062,2316.4,2315.3,5.32065466]
[1773683895633,4.91634062,2315.5,2314.8,5.31557485]
[1773683896235,5.03470062,2315.5,2314.8,5.31557485]
[1773683896635,5.03470062,2315.5,2314.8,5.31890233]
[1773683897732,5.03470062,2315.5,2314.8,0.00332748]
[1773683898438,5.03470062,2315.5,2314.8,5.31890233]
[1773683898637,5.03470062,2315.5,2314.8,0.00332748]
[1773683902345,5.03470062,2315.5,2314.8,5.12454978]
[1773683902857,5.25400495,2315.5,2314.8,5.12454978]
[1773683904047,5.25400495,2315.5,2314.8,0.00332748]
[1773683906448,5.25400495,2315.5,2314.8,5.12454978]
[1773683906747,5.13564495,2315.5,2314.8,5.12454978]
[1773683906949,5.24578495,2315.5,2314.8,5.12454978]
[1773683907850,5.13564495,2315.5,2314.8,5.12454978]
[1773683910952,5.13564495,2315.5,2314.8,0.00332748]
[1773683911152,5.13564495,2315.5,2314.5,5.1212223]
[1773683912052,5.13564495,2315.5,2314.5,5.3372323]
[1773683912252,5.13564495,2315.5,2314.5,5.34097424]
[1773683915856,4.91634062,2315.5,2314.5,5.34097424]
[1773683916052,4.80236952,2316.3,2315.0,5.1212223]
[1773683916755,1.16070246,2316.0,2315.0,5.1212223]
[1773683917154,4.80236952,2315.9,2315.0,5.1212223]
[1773683917952,4.80236952,2315.9,2315.0,6.28192476]
[1773683921455,4.80236952,2315.9,2315.0,5.1212223]
[1773683921755,5.01444727,2315.9,2315.0,5.1212223]
[1773683923560,5.01444727,2315.9,2315.0,6.28192476]
[1773683924054,5.01444727,2315.9,2315.0,5.1212223]
[1773683927463,4.80236952,2315.7,2315.0,5.1212223]
[1773683927658,4.80236952,2315.7,2315.1,5.1212223]
[1773683927857,4.80236952,2315.7,2315.2,5.1212223]
[1773683929261,4.80236952,2315.7,2315.0,8.73486532]
[1773683929963,4.80236952,2315.5,2315.0,8.73486532]
[1773683930362,4.80236952,2315.8,2315.1,5.1212223]
[1773683930563,4.80236952,2315.8,2315.2,5.1212223]
[1773683932460,4.90133325,2315.9,2315.2,5.1212223]
[1773683932655,4.6892555,2316.4,2315.7,4.93909931]
[1773683933565,4.6892555,2316.8,2316.2,4.93909931]
[1773683933956,1.16070246,2317.2,2316.2,4.93909931]
[1773683933957,4.90892363,2316.9,2316.2,4.93909931]
[1773683934561,4.91247543,2316.9,2316.2,4.94319154]
[1773683936170,0.0035518,2316.9,2316.2,4.94319154]
[1773683938057,5.03463367,2316.9,2316.2,4.94319154]
[1773683939170,0.29042987,2317.3,2316.2,4.94319154]
[1773683939469,5.03108187,2317.2,2316.2,4.94319154]
[1773683940068,5.03633461,2317.2,2316.2,4.94319154]
[1773683940766,5.03633461,2317.2,2316.2,0.00409223]
[1773683941066,5.03108187,2316.6,2315.6,4.80036166]
[1773683941268,5.03108187,2316.6,2315.5,4.80036166]
[1773683942062,5.03108187,2316.6,2315.5,4.80596877]
[1773683945471,5.03108187,2316.4,2315.5,4.80596877]
[1773683947373,5.14070187,2316.4,2315.5,4.80596877]
[1773683948674,5.14070187,2316.4,2315.5,0.00560711]
[1773683949176,5.14070187,2316.4,2315.5,4.80596877]
[1773683950574,5.14070187,2316.4,2315.5,0.00560711]
[1773683951172,5.14601187,2316.2,2315.5,0.00560711]
[1773683951869,5.03108187,2316.2,2315.5,4.80596877]
[1773683952072,5.14024187,2316.2,2315.5,4.80596877]
[1773683953478,5.14024187,2316.2,2315.5,0.00560711]
[1773683953872,5.14024187,2316.2,2315.5,4.80596877]
[1773683954573,5.14024187,2316.2,2315.5,0.00560711]
[1773683955670,5.03108187,2315.7,2315.1,8.40946916]
[1773683955870,5.03108187,2315.7,2314.8,8.40946916]
[1773683956079,5.03108187,2315.7,2314.8,4.80036166]
[1773683956276,5.14381187,2315.7,2314.8,4.80036166]
[1773683956672,5.14381187,2315.7,2314.8,4.8052924]
[1773683957582,5.14817187,2315.7,2314.8,4.8052924]
[1773683958179,5.14096187,2315.7,2314.8,4.8052924]
[1773683958579,5.03108187,2315.7,2314.8,4.8052924]
[1773683959581,5.13990187,2315.7,2314.8,4.8052924]
[1773683959880,5.24775493,2315.7,2314.8,4.8052924]
[1773683960181,5.35654493,2315.7,2314.8,4.8052924]
[1773683960383,5.24775493,2315.7,2314.8,4.8052924]
[1773683963885,5.24775493,2315.7,2314.8,0.00493074]
[1773683964092,5.46366493,2315.7,2314.8,0.00493074]
[1773683964389,5.24775493,2315.7,2314.5,4.83396415]
[1773683965386,5.24775493,2315.7,2314.6,5.04996415]
[1773683965591,5.24775493,2315.7,2314.7,4.83396415]
[1773683972694,5.35581493,2315.7,2314.7,4.83396415]
[1773683972899,5.35603493,2315.7,2314.7,4.83396415]
[1773683975399,5.35746493,2315.7,2314.7,4.83396415]
[1773683975800,5.35638493,2315.7,2314.7,4.83396415]
[1773683975998,5.35751493,2315.7,2314.7,3.6091075]
[1773683976199,5.35691493,2315.7,2314.5,8.66391269]
[1773683976402,5.35691493,2315.7,2314.6,4.83396415]
[1773683983214,5.35691493,2315.7,2314.7,4.83396415]
[1773683984515,5.35691493,2315.7,2314.5,0.00483104]
[1773683984516,4.6922801,2315.4,2314.5,0.00483104]
[1773683984715,4.6908101,2315.2,2314.5,0.00483104]
[1773683985115,4.6908101,2315.2,2314.5,3.61393854]
[1773683985414,4.6908101,2315.2,2314.5,8.44790269]
[1773683986217,4.6908101,2315.2,2314.5,4.83879519]
[1773683990417,4.6908101,2315.2,2314.5,0.00483104]
[1773683990819,4.6744301,2315.2,2314.5,4.83879519]
[1773683992518,4.88642042,2315.2,2314.5,4.83879519]
[1773683993820,4.88686042,2315.2,2314.5,4.83879519]
[1773683994516,0.32067032,2315.2,2314.5,4.83879519]
[1773683994818,0.21199032,2315.2,2314.6,4.766854]
[1773683995017,4.62873962,2315.4,2314.6,4.766854]
[1773683996621,4.84742752,2315.4,2314.6,4.766854]
[1773683998819,0.22402388,2315.4,2314.6,8.3759615]
[1773683999122,0.22402388,2315.4,2314.5,0.00483104]
[1773683999123,0.22402388,2315.4,2314.8,4.766854]
[1773683999322,5.0415894,2315.4,2314.8,4.766854]
[1773684000223,5.0415894,2315.4,2314.7,4.766854]
[1773684001226,5.0415894,2315.4,2314.5,4.77168504]
[1773684001422,4.81756552,2315.2,2314.5,4.77168504]
[1773684002333,4.81756552,2315.2,2314.5,0.00483104]
[1773684002923,4.81756552,2315.0,2314.5,0.00483104]
[1773684003123,4.81756552,2315.0,2314.5,4.77168504]
[1773684003427,5.63308288,2315.0,2314.0,4.766854]
[1773684003721,4.47172552,2315.0,2314.0,4.766854]
[1773684003927,4.81756552,2314.9,2314.0,4.766854]
[1773684004221,13.72356552,2315.1,2314.0,4.771162]
[1773684004426,13.72356552,2315.1,2314.2,4.766854]
[1773684004427,4.81756552,2315.0,2314.2,4.766854]
[1773684004627,4.81756552,2315.0,2314.1,4.766854]
[1773684005628,4.81756552,2315.1,2314.1,4.766854]
[1773684006624,0.21286688,2315.3,2314.3,10.17325271]
[1773684006829,13.7329015,2315.4,2314.5,4.766854]
[1773684007329,13.95079021,2315.4,2314.5,4.766854]
[1773684008031,5.04079021,2315.4,2314.5,4.766854]
[1773684008230,5.04079021,2315.4,2314.6,4.766854]
[1773684011132,4.81756552,2315.2,2314.6,4.766854]
[1773684011824,0.22322469,2315.4,2314.6,4.766854]
[1773684012423,5.04079021,2315.4,2314.6,4.766854]
[1773684016032,0.22322469,2315.4,2314.6,4.766854]
[1773684016430,5.04079021,2315.4,2314.6,4.766854]
[1773684017541,4.81756552,2315.5,2314.6,4.766854]
[1773684018540,4.82245395,2315.5,2314.6,4.766854]
[1773684019534,5.04061394,2315.5,2314.5,3.50293914]
[1773684019734,5.25654394,2315.5,2314.3,4.766854]
[1773684020439,4.81756552,2315.3,2314.3,4.766854]
[1773684021636,0.22304842,2315.5,2314.3,4.766854]
[1773684022338,5.04061394,2315.5,2314.3,4.766854]
[1773684023738,5.04061394,2315.5,2314.5,4.36162168]
[1773684027934,0.22304842,2315.5,2314.5,4.36162168]
[1773684028137,4.75512113,2315.7,2314.7,4.36162168]
[1773684028433,4.75512113,2316.1,2314.9,4.36162168]
[1773684028634,4.75512113,2316.8,2315.2,4.57757168]
[1773684028833,4.32496976,2316.6,2315.4,4.52194022]
[1773684029332,4.32877217,2316.6,2315.4,4.52194022]
[1773684030842,4.32877217,2316.6,2315.4,4.30601022]
[1773684031043,4.5149615,2316.4,2315.4,4.30601022]
[1773684032842,4.5149615,2316.2,2315.4,4.30601022]
[1773684035643,4.5149615,2316.0,2315.0,4.46236858]
[1773684038252,4.5149615,2315.8,2314.6,4.46236858]
[1773684038447,4.5149615,2315.8,2314.8,4.46236858]
[1773684039044,4.66486076,2316.0,2315.0,4.55431776]
[1773684039247,4.4493167,2316.3,2315.2,4.55431776]
[1773684039551,4.4493167,2316.3,2315.3,4.55431776]
[1773684041449,4.67057473,2316.3,2315.3,4.55431776]
[1773684043253,0.22125803,2316.3,2315.3,4.55431776]
[1773684043457,4.4493167,2316.4,2315.3,4.55431776]
[1773684050965,4.7158689,2316.6,2315.3,4.55431776]
[1773684052765,1.16040099,2316.3,2315.3,4.55431776]
[1773684052963,4.5148066,2316.2,2315.3,4.55431776]
[1773684053164,4.5148066,2316.0,2315.3,4.55431776]
[1773684055862,4.3694962,2315.6,2315.1,4.50431918]
[1773684056070,4.3694962,2315.8,2315.1,4.50431918]
[1773684056272,4.3694962,2316.2,2315.3,4.50431918]
[1773684056664,4.3694962,2316.2,2315.4,4.50431918]
[1773684056860,4.5903963,2316.2,2315.4,4.50431918]
[1773684058678,4.3694962,2316.0,2315.1,4.50431918]
[1773684058967,4.5903963,2316.2,2315.1,4.50431918]
[1773684060565,4.5903963,2316.2,2315.0,6.76707657]
[1773684060566,4.5903963,2316.2,2315.3,4.50431918]
[1773684063268,0.2209001,2316.2,2315.3,4.50431918]
[1773684063467,4.3694962,2316.3,2315.5,4.50431918]
[1773684063765,4.3694962,2316.5,2315.5,4.50431918]
[1773684063964,0.00380241,2316.6,2315.7,4.50431918]
[1773684063965,0.2239742,2316.6,2315.7,4.50431918]
[1773684064162,0.2239742,2316.6,2315.7,4.50875779]
[1773684064371,4.5934704,2316.6,2315.7,4.50875779]
[1773684067077,4.3743405,2316.4,2315.7,4.50875779]
[1773684071278,4.5983147,2316.6,2315.9,4.38844161]
[1773684072484,4.5983147,2316.6,2315.7,4.39288022]
[1773684074081,4.3743405,2316.4,2315.4,4.38844161]
[1773684074278,4.3743405,2316.2,2315.4,4.38844161]
[1773684075190,4.3743405,2316.0,2315.0,4.38844161]
[1773684075483,4.3743405,2316.0,2315.1,4.38844161]
[1773684076277,4.3743405,2316.0,2315.1,4.39161949]
[1773684076985,4.3743405,2316.3,2315.1,4.60756949]
[1773684077284,4.3743405,2316.1,2315.1,4.60756949]
[1773684080094,4.3743405,2316.1,2315.3,4.38844161]
[1773684081590,0.21359203,2316.3,2315.3,4.38844161]
[1773684081798,4.3743405,2316.5,2316.0,4.38844161]
[1773684082297,0.00380241,2316.6,2316.0,4.38844161]
[1773684083196,4.42971365,2317.1,2316.0,4.60431161]
[1773684083400,4.42971365,2317.5,2316.5,4.27921653]
[1773684083698,3.61920573,2317.9,2316.3,4.27921653]
[1773684083699,4.42971365,2317.3,2316.3,4.27921653]
[1773684084091,4.43489292,2317.3,2316.3,4.27921653]
[1773684086102,4.42971365,2317.1,2316.0,4.27921653]
[1773684090607,4.53830365,2316.9,2316.0,4.27921653]
[1773684091606,4.42971365,2316.9,2316.0,4.27921653]
[1773684091803,4.53766365,2316.9,2316.0,4.27921653]
[1773684092109,4.42971365,2316.9,2316.0,4.27921653]
[1773684092298,4.53942365,2316.9,2316.0,4.27921653]
[1773684098113,4.75589824,2316.9,2316.0,4.27921653]
[1773684104522,4.55064365,2316.3,2315.4,4.27921653]
[1773684104720,4.55016365,2316.1,2315.2,4.27921653]
[1773684105221,4.42971365,2316.3,2315.2,4.49515653]
[1773684105526,4.53804365,2316.8,2315.6,4.27921653]
[1773684105720,4.42971365,2316.8,2315.6,4.27921653]
[1773684106928,4.42971365,2316.8,2315.7,4.27921653]
[1773684107426,4.42971365,2316.8,2315.9,4.27921653]
[1773684107824,0.21647459,2316.9,2315.9,4.27921653]
[1773684108025,4.42971365,2317.0,2315.9,4.27921653]
[1773684108628,4.42971365,2317.0,2316.1,4.27921653]
[1773684109229,4.42971365,2317.2,2316.1,4.27921653]
[1773684109424,4.42971365,2317.2,2316.1,5.44004286]
[1773684109630,0.00517927,2317.3,2316.2,11.40421653]
[1773684109930,4.43489292,2317.3,2316.3,4.27921653]
[1773684110424,1e-08,2317.3,2316.6,4.27921653]
[1773684110619,4.42971365,2317.7,2316.7,4.27921653]
[1773684111030,4.42971365,2317.7,2316.8,4.27921653]
[1773684111529,4.43477195,2317.7,2316.8,4.282328]
[1773684112126,4.65376026,2317.7,2316.8,4.282328]
[1773684113026,4.43477195,2317.7,2316.8,4.282328]
[1773684118132,4.54339195,2317.7,2316.8,4.282328]
[1773684119834,4.54339195,2317.7,2316.6,4.12883155]
[1773684120727,4.54339195,2317.7,2316.6,4.13219234]
[1773684122633,4.43477195,2317.7,2316.6,4.13219234]
[1773684129538,0.0050583,2317.7,2316.6,4.13219234]
[1773684129838,4.22323117,2317.7,2316.6,4.13219234]
[1773684132142,0.0050583,2317.7,2316.6,4.13219234]
[1773684132440,4.22323117,2317.7,2316.7,4.12883155]
[1773684134739,0.0050583,2317.7,2316.7,4.12883155]
[1773684135130,3.82510447,2318.5,2316.7,4.12883155]
[1773684135131,4.21817287,2318.0,2316.9,4.12883155]
[1773684135332,4.21817287,2318.0,2317.1,4.12883155]
[1773684136137,4.22139301,2318.0,2317.1,4.12883155]
[1773684137137,5.09503,2317.9,2316.7,4.12883155]
[1773684137342,4.21817287,2317.8,2316.7,4.12883155]
[1773684137841,4.21817287,2317.8,2316.9,4.12883155]
[1773684138142,4.22139301,2318.0,2316.9,4.12883155]
[1773684139039,0.00322014,2318.0,2317.1,4.12883155]
[1773684139241,4.21817287,2318.3,2317.3,4.12883155]
[1773684139436,0.21928879,2318.4,2317.5,4.12883155]
[1773684139640,4.21817287,2318.5,2317.5,4.12883155]
[1773684140242,4.22316333,2318.5,2317.5,4.12883155]
[1773684140540,0.00499046,2318.5,2317.5,4.12883155]
[1773684141341,0.00499046,2318.5,2317.7,4.12883155]
[1773684141640,4.21817287,2319.3,2317.9,4.12883155]
[1773684141846,4.21817287,2319.3,2318.1,4.12883155]
[1773684142035,4.21817287,2319.3,2318.2,4.12883155]
[1773684142636,4.50180012,2319.3,2318.2,4.12883155]
[1773684143147,4.22302786,2319.3,2318.2,4.12883155]
[1773684143544,0.00485499,2319.3,2318.2,4.12883155]
[1773684143844,0.00485499,2319.3,2318.4,3.77164651]
[1773684144047,3.90395808,2319.3,2318.4,3.77649807]
[1773684146443,0.21558,2319.2,2318.2,3.77164651]
[1773684146643,3.89910309,2318.9,2317.6,3.77164651]
[1773684147546,3.89910309,2318.9,2317.6,3.77602831]
[1773684149548,3.89910309,2319.2,2317.8,3.77164651]
[1773684150549,3.89910309,2319.2,2318.0,3.77164651]
[1773684153145,3.89910309,2319.2,2318.1,0.21568]
[1773684153350,3.89910309,2319.2,2318.2,3.77164651]
[1773684153551,3.90395808,2319.3,2318.2,3.77164651]
[1773684159358,3.89910309,2319.1,2318.2,3.77164651]
[1773684159557,3.89910309,2318.9,2317.7,3.77164651]
[1773684161458,3.89910309,2318.3,2317.1,3.77164651]
[1773684161661,3.89910309,2318.1,2316.7,3.77164651]
[1773684162458,3.89910309,2317.9,2316.7,3.77688622]
[1773684163361,4.00840309,2317.9,2316.7,3.77688622]
[1773684164366,4.01186309,2317.7,2316.7,3.77688622]
[1773684164567,4.01186309,2317.7,2316.7,0.00523971]
[1773684165961,4.02038309,2317.5,2316.3,3.77164651]
[1773684166165,4.02042309,2317.3,2316.3,3.77164651]
[1773684166862,4.01709309,2317.1,2316.0,3.77164651]
[1773684167064,4.02064592,2317.1,2316.0,3.77482978]
[1773684168863,3.89910309,2316.9,2316.0,0.00318327]
[1773684169057,4.01178309,2316.9,2316.0,0.00318327]
[1773684169256,3.89910309,2316.8,2316.0,3.77482978]
[1773684169467,0.00355283,2317.1,2316.2,3.77164651]
[1773684169970,0.00355283,2317.1,2316.4,3.77164651]
[1773684171972,0.00355283,2317.1,2316.6,3.77164651]
[1773684172466,3.89910309,2317.4,2316.6,3.77164651]
[1773684173367,0.00454364,2317.4,2316.6,3.77164651]
[1773684174569,3.62988343,2317.4,2316.6,3.77164651]
[1773684178369,3.62988343,2317.4,2316.0,0.00318327]
[1773684178572,3.62988343,2317.4,2316.3,3.61049063]
[1773684178770,0.00454364,2317.4,2316.3,3.61049063]
[1773684179169,3.73368896,2317.4,2316.3,3.61049063]
[1773684179465,3.73368896,2317.4,2316.5,3.61049063]
[1773684180166,3.73368896,2317.4,2316.0,0.00318327]
[1773684180364,3.72914532,2317.2,2316.1,3.61049063]
[1773684183374,3.73368896,2317.4,2316.1,3.61049063]
[1773684185665,3.73368896,2317.4,2316.0,0.00318327]
[1773684185666,3.72914532,2316.9,2316.0,0.00318327]
[1773684185873,3.72914532,2316.7,2315.1,3.61049063]
[1773684186170,3.72914532,2316.5,2315.1,3.61049063]
[1773684186874,3.72914532,2316.5,2315.1,3.61411859]
[1773684187574,3.72914532,2316.3,2315.1,0.00362796]
[1773684187775,3.72914532,2316.1,2315.1,3.61411859]
[1773684191278,3.72914532,2316.4,2315.3,3.61049063]
[1773684193278,3.72914532,2316.2,2315.3,3.61049063]
[1773684193478,3.72914532,2316.2,2315.1,3.61411859]
[1773684194188,3.72914532,2316.0,2315.1,0.00362796]
[1773684194579,3.72914532,2316.0,2314.9,3.61049063]
[1773684194783,3.72914532,2315.8,2314.9,3.61049063]
[1773684194981,3.83794532,2315.8,2314.9,3.61049063]
[1773684195277,3.72914532,2315.8,2314.9,3.61049063]
[1773684195481,3.83881532,2315.7,2314.9,3.61468186]
[1773684195681,3.84217029,2315.7,2314.9,3.61468186]
[1773684195882,3.73250029,2315.7,2314.9,3.61468186]
[1773684196588,3.72914532,2316.2,2314.9,3.61468186]
[1773684196780,3.94464915,2316.2,2314.9,3.61468186]
[1773684197481,3.94933745,2316.2,2314.9,3.61468186]
[1773684198183,3.72914532,2316.0,2314.9,3.61468186]
[1773684198381,3.72914532,2315.8,2314.9,3.61468186]
[1773684198782,3.72914532,2316.1,2314.9,3.61468186]
[1773684200181,3.72914532,2316.1,2315.1,3.61049063]
[1773684201689,3.72914532,2316.1,2315.3,3.61049063]
[1773684203088,3.72914532,2316.1,2315.0,3.427119]
[1773684204582,3.68450824,2315.9,2315.0,3.427119]
[1773684204887,3.68450824,2315.9,2313.9,17.82920937]
[1773684204888,3.90041824,2315.6,2314.3,3.427119]
[1773684205096,3.90043824,2315.4,2314.3,3.427119]
[1773684205390,3.68450824,2315.2,2314.3,3.427119]
[1773684205891,3.68450824,2315.2,2314.3,3.43085761]
[1773684206586,3.68450824,2315.7,2314.3,3.43085761]
[1773684206787,3.68450824,2315.5,2314.3,3.43085761]
[1773684208988,0.21254621,2315.7,2314.5,3.427119]
[1773684209190,3.68450824,2315.7,2314.7,3.427119]
[1773684209490,3.61414277,2316.2,2314.9,3.427119]
[1773684209491,3.68450824,2316.0,2314.9,3.427119]
[1773684209684,3.89903772,2316.0,2314.9,3.427119]
[1773684209882,3.68450824,2316.0,2314.9,3.427119]
[1773684214597,3.68450824,2316.1,2314.9,3.427119]
[1773684214791,0.0046883,2316.2,2315.1,3.427119]
[1773684215898,0.0046883,2316.2,2315.1,10.19419557]
[1773684216096,0.0046883,2316.2,2315.2,3.427119]
[1773684216496,0.0046883,2316.2,2315.2,3.643069]
[1773684217798,3.68919654,2316.2,2315.2,3.751059]
[1773684217996,3.68919654,2316.2,2315.2,3.643069]